bitfinex/quotes_ETHUSD_20220120
["timestamp","ask_amount","ask_price","bid_price","bid_amount"]
[1642708766825,6.92821223,3216.2,3216.1,6.10847643]
[1642708766826,1.223e-05,3216.2,3216.1,6.10847643]
[1642708767026,1.87062537,3217.2,3216.2,5.8]
[1642708767230,3.72807165,3217.4,3216.3,0.65847643]
[1642708767231,1.87062537,3217.1,3216.3,0.65847643]
[1642708767427,1.87062537,3217.0,3216.3,0.65961328]
[1642708767626,1.87062537,3216.9,3216.3,0.65961328]
[1642708767829,1.87062537,3216.8,3216.3,0.00113685]
[1642708768027,1.87062537,3216.7,3216.3,0.00113685]
[1642708768276,1.87062537,3216.6,3216.3,1.01266715]
[1642708768478,1.87062537,3216.6,3216.4,0.65848915]
[1642708768674,1.87062537,3216.6,3216.3,1.13686715]
[1642708768874,1.87062537,3216.6,3216.4,0.65797998]
[1642708769077,0.00113685,3216.7,3216.5,6.86875556]
[1642708769278,0.00113685,3216.7,3216.6,2.94618624]
[1642708769478,0.00113685,3216.7,3216.6,4.6742]
[1642708769679,0.00113685,3216.7,3216.6,5.33153248]
[1642708770078,0.00113685,3216.7,3216.6,0.78153248]
[1642708771179,0.00113685,3216.7,3216.6,0.1242]
[1642708771580,0.00113685,3216.7,3216.4,0.1242]
[1642708771780,0.00113685,3216.7,3216.5,0.6572254]
[1642708772024,0.00113685,3216.7,3216.5,0.9572254]
[1642708772226,0.00113685,3216.7,3216.6,5.9814254]
[1642708774029,0.00113685,3216.7,3216.6,0.7814254]
[1642708774428,0.00113685,3216.7,3216.6,0.1242]
[1642708774629,0.00113685,3216.7,3216.6,0.78114131]
[1642708774829,0.00113685,3216.7,3216.6,3.68114131]
[1642708775232,0.00113685,3216.7,3216.6,7.17421487]
[1642708775680,0.00113685,3216.7,3216.6,8.12421487]
[1642708776071,0.00113685,3216.7,3216.6,11.43441487]
[1642708776271,0.00113685,3216.7,3216.6,12.92292666]
[1642708778976,0.00113685,3216.7,3216.6,12.62292666]
[1642708779423,0.00113685,3216.7,3216.6,12.92292666]
[1642708779823,0.00113685,3216.7,3216.6,12.95338578]
[1642708780025,0.1242,3217.5,3216.8,0.77699]
[1642708780230,0.1242,3217.5,3216.9,5.65385145]
[1642708780425,0.00397896,3217.4,3217.0,0.65694131]
[1642708780624,0.00397896,3217.4,3217.1,4.46049266]
[1642708780824,1.1242,3218.6,3217.2,0.65694131]
[1642708780825,0.00341054,3217.3,3217.2,0.65694131]
[1642708781026,0.00341054,3217.3,3217.2,4.87869778]
[1642708781423,0.00341054,3217.3,3217.2,5.75796247]
[1642708783483,0.00341054,3217.3,3217.2,2.89826851]
[1642708783681,0.00341054,3217.3,3217.2,8.79557702]
[1642708783882,0.00341054,3217.3,3217.2,5.99826851]
[1642708784081,0.00341054,3217.3,3217.2,8.81065307]
[1642708784284,0.00341054,3217.3,3217.2,2.89826851]
[1642708784485,0.00341054,3217.3,3217.2,1.2413272]
[1642708784682,0.00341054,3217.3,3217.2,2.2413272]
[1642708785086,0.00341054,3217.3,3217.1,1.2017]
[1642708785487,1.99730173,3218.1,3217.1,1.2017]
[1642708785488,0.00284211,3217.2,3217.1,1.2017]
[1642708786485,0.00284211,3217.2,3217.1,1.5017]
[1642708788229,0.00284211,3217.2,3217.1,1.2017]
[1642708788428,0.00284211,3217.2,3216.9,0.3]
[1642708788630,0.00284211,3217.2,3216.7,1.1406]
[1642708788829,5.43773754,3217.7,3216.7,1.1406]
[1642708788830,0.00227369,3217.1,3216.7,1.1406]
[1642708789228,0.00170527,3217.0,3216.7,1.1406]
[1642708789627,0.00113684,3216.9,3216.6,3.6102]
[1642708789829,0.00113684,3216.9,3216.5,1.13525273]
[1642708790030,0.30227369,3217.1,3216.5,1.13525273]
[1642708790431,0.00170527,3217.0,3216.5,1.13525273]
[1642708790878,0.00113684,3216.9,3216.5,1.13525273]
[1642708791272,0.00170527,3217.0,3216.5,1.13525273]
[1642708791674,0.00113684,3216.9,3216.5,1.13525273]
[1642708791973,0.3,3217.1,3216.5,1.13525273]
[1642708791974,0.00170527,3217.0,3216.5,1.13525273]
[1642708792374,0.00113684,3216.9,3216.5,1.13525273]
[1642708792573,0.00113684,3216.9,3216.6,0.1242]
[1642708792772,0.00170527,3217.0,3216.6,0.1242]
[1642708793277,0.00113684,3216.9,3216.6,0.1242]
[1642708793582,0.00170527,3217.0,3216.6,0.1242]
[1642708793776,0.00170527,3217.0,3216.5,1.13525273]
[1642708793976,0.00113684,3216.9,3216.5,1.13525273]
[1642708794419,0.00170527,3217.0,3216.5,1.13525273]
[1642708794621,0.00170527,3217.0,3216.5,1.25945273]
[1642708794820,0.3,3217.1,3216.5,1.25945273]
[1642708794821,0.00113684,3216.9,3216.5,1.25945273]
[1642708795221,0.00170527,3217.0,3216.5,1.25945273]
[1642708795726,0.00113684,3216.9,3216.5,1.25945273]
[1642708795923,0.00113684,3216.9,3216.5,1.13525273]
[1642708796127,0.00170527,3217.0,3216.5,1.13525273]
[1642708796526,0.00113684,3216.9,3216.5,1.13525273]
[1642708796726,0.00113684,3216.9,3216.4,3.701]
[1642708797025,2.86048488,3217.0,3216.5,0.00113685]
[1642708797227,1.85877961,3216.9,3216.5,0.00113685]
[1642708797424,1.85877961,3216.9,3216.3,0.0022737]
[1642708797425,1.85991645,3216.9,3216.3,0.0022737]
[1642708797624,1.85991645,3216.9,3216.2,0.12704212]
[1642708797625,2.15991645,3216.9,3216.2,0.12704212]
[1642708797825,2.15991645,3216.9,3216.3,0.0022737]
[1642708798179,0.30113684,3216.9,3216.3,0.0022737]
[1642708798377,0.00113684,3216.9,3216.3,0.0022737]
[1642708800278,4.57111588,3216.9,3216.2,0.00284212]
[1642708800481,1.86878482,3216.8,3216.2,0.00284212]
[1642708800681,2.31578482,3216.8,3216.2,0.00284212]
[1642708800887,4.85614167,3216.7,3216.2,0.00284212]
[1642708801080,2.86719797,3216.6,3216.2,0.00284212]
[1642708801283,4.73066974,3216.5,3216.2,0.00284212]
[1642708801584,5.03066974,3216.5,3216.2,0.00284212]
[1642708801779,0.4242,3216.5,3216.2,0.00284212]
[1642708802024,0.1242,3216.5,3216.2,0.00284212]
[1642708802325,0.1242,3216.5,3216.4,0.00642369]
[1642708802725,0.15631684,3216.9,3216.4,0.00642369]
[1642708802726,0.1242,3216.7,3216.4,0.00642369]
[1642708802925,1.95994942,3216.6,3216.4,0.00642369]
[1642708803126,0.1242,3216.8,3216.2,1.02952894]
[1642708803330,1.93785149,3216.7,3216.2,1.02952894]
[1642708803528,0.1242,3216.8,3216.2,1.02952894]
[1642708803727,0.1242,3216.8,3216.4,0.00642369]
[1642708803931,0.00113684,3216.9,3216.2,1.45372894]
[1642708804129,0.00113684,3216.9,3216.2,1.15372894]
[1642708804328,0.00113684,3216.9,3216.2,1.02952894]
[1642708805327,0.00113684,3216.9,3216.6,0.00642369]
[1642708805773,0.00113684,3216.9,3216.2,1.02952894]
[1642708806175,0.00113684,3216.9,3216.3,0.60573366]
[1642708806375,0.00113684,3216.9,3216.3,1.53273366]
[1642708806578,0.00113684,3216.9,3216.4,0.60573366]
[1642708806781,0.00113684,3216.9,3216.6,0.00642369]
[1642708807176,2.39903664,3218.0,3216.7,1.58237217]
[1642708807374,1.61909655,3218.2,3216.9,0.00103411]
[1642708807375,4.80689969,3217.9,3216.9,0.00103411]
[1642708807577,1.93530955,3217.8,3216.9,0.00103411]
[1642708807875,1.93530955,3217.7,3217.0,0.1242]
[1642708808077,0.00682108,3217.9,3217.0,0.1242]
[1642708808078,1.93530955,3217.6,3217.0,0.1242]
[1642708808278,0.00511581,3217.6,3217.1,0.60588602]
[1642708808481,0.00454738,3217.5,3217.4,0.86057704]
[1642708808680,0.00454738,3217.5,3217.2,0.1242]
[1642708809183,0.00397896,3217.4,3217.2,0.1242]
[1642708809638,0.00341054,3217.3,3217.2,0.1242]
[1642708810239,0.00341054,3217.3,3217.2,0.4242]
[1642708810439,0.00341054,3217.3,3217.2,4.92100865]
[1642708810840,0.00341054,3217.3,3217.2,6.05209825]
[1642708811442,0.00341054,3217.3,3217.2,6.05852194]
[1642708811640,0.00341054,3217.3,3217.2,1.85852194]
[1642708811845,0.00341054,3217.3,3217.2,1.26171329]
[1642708812041,0.00341054,3217.3,3217.2,1.13751329]
[1642708812643,0.00258584,3217.3,3217.2,1.7344848]
[1642708814721,0.00258584,3217.3,3217.2,1.73437399]
[1642708814722,0.04869254,3217.3,3217.2,1.73437399]
[1642708815123,2.05898259,3217.3,3217.2,1.13751329]
[1642708815321,0.09479924,3217.3,3217.2,1.13751329]
[1642708815620,0.09479924,3217.3,3217.2,1.73333789]
[1642708816822,0.09479924,3217.3,3217.2,1.13751329]
[1642708817034,2.06155805,3217.3,3217.2,1.13751329]
[1642708820235,2.06155805,3217.3,3217.2,0.00642369]
[1642708820434,2.06968211,3217.3,3217.2,0.00642369]
[1642708821384,2.06968211,3217.3,3217.2,0.94270395]
[1642708822186,2.06968211,3217.3,3217.2,1.53894092]
[1642708822384,0.1029233,3217.3,3217.2,1.53894092]
[1642708822583,2.07013687,3217.3,3217.2,1.53894092]
[1642708822884,0.1029233,3217.3,3217.2,1.53894092]
[1642708823184,0.1029233,3217.3,3217.2,0.60266066]
[1642708823387,0.1029233,3217.3,3217.2,0.00642369]
[1642708823988,2.07140113,3217.3,3217.2,0.00642369]
[1642708824440,0.1029233,3217.3,3217.2,1.43853675]
[1642708825932,2.05590848,3217.3,3217.2,0.6163197]
[1642708826134,2.05590848,3217.3,3217.2,0.00642369]
[1642708827337,2.05590848,3217.3,3217.2,0.5870382]
[1642708827338,0.1029233,3217.3,3217.2,0.5870382]
[1642708827735,2.08167915,3217.3,3217.2,0.5870382]
[1642708828035,2.08167915,3217.3,3217.2,1.08460581]
[1642708830583,2.38167915,3217.3,3217.2,0.00642369]
[1642708833027,2.08167915,3217.3,3217.2,0.88366944]
[1642708833231,2.08167915,3217.3,3217.2,0.00642369]
[1642708835134,2.38167915,3217.3,3217.2,0.00642369]
[1642708835331,2.08167915,3217.3,3217.2,0.00642369]
[1642708835533,2.38167915,3217.3,3217.2,0.00642369]
[1642708835975,2.38167915,3217.3,3216.9,1.02132003]
[1642708836179,4.14023703,3217.3,3216.9,1.02132003]
[1642708836376,1.98077326,3217.2,3217.1,0.00549871]
[1642708836577,2.02687996,3217.2,3217.1,0.00549871]
[1642708836778,2.02687996,3217.2,3216.9,0.00103411]
[1642708836977,1.97875585,3217.1,3216.9,0.00103411]
[1642708837177,1.97875585,3217.0,3216.9,0.00103411]
[1642708837379,1.97963642,3217.0,3216.9,0.00103411]
[1642708837577,1.97963642,3217.0,3216.9,1.18329059]
[1642708837779,1.97963642,3217.0,3216.9,1.50050575]
[1642708837977,1.97963642,3217.0,3216.9,8.23440575]
[1642708837978,0.00088057,3217.0,3216.9,8.23440575]
[1642708838178,0.00088057,3217.0,3216.9,9.68140575]
[1642708838779,0.00088057,3217.0,3216.9,12.68593987]
[1642708838982,0.00088057,3217.0,3216.9,11.38593987]
[1642708839286,2.68546685,3218.1,3216.9,1.94750575]
[1642708839528,1.94937539,3218.0,3217.0,3.40034748]
[1642708839728,0.00113684,3217.2,3217.1,3.73291645]
[1642708839930,0.00113684,3217.2,3217.1,1.18291645]
[1642708840334,0.00113684,3217.2,3217.1,4.09794158]
[1642708840530,0.00113684,3217.2,3217.1,4.27374158]
[1642708840728,0.00113684,3217.2,3217.1,4.39794158]
[1642708840932,0.00113684,3217.2,3217.1,5.39794158]
[1642708841130,0.00113684,3217.2,3217.1,12.29634029]
[1642708841629,0.04724354,3217.2,3217.1,12.29634029]
[1642708843384,0.04724354,3217.2,3217.1,5.34634029]
[1642708843583,0.04724354,3217.2,3217.1,2.30711516]
[1642708843985,0.04632628,3217.2,3217.1,2.30711516]
[1642708844589,0.04632628,3217.2,3217.1,2.60711516]
[1642708844784,0.04632628,3217.2,3217.1,2.28554374]
[1642708844982,0.04632628,3217.2,3217.1,7.27225078]
[1642708845184,0.04632628,3217.2,3217.1,8.04917878]
[1642708845585,0.04632628,3217.2,3217.1,7.27225078]
[1642708846582,0.04632628,3217.2,3217.1,8.57225078]
[1642708847236,0.1242,3218.5,3217.2,6.2]
[1642708847438,6.66389655,3218.7,3217.2,6.2]
[1642708847439,1.95305596,3218.4,3217.8,0.01205735]
[1642708847638,0.00511581,3218.1,3217.9,1.38843645]
[1642708847835,0.00511581,3218.1,3218.0,7.25871645]
[1642708848140,1.24669888,3218.9,3218.7,1.14610454]
[1642708848339,5.169,3219.1,3218.7,1.89460454]
[1642708848340,1.95567415,3218.8,3218.7,1.89460454]
[1642708848538,1.95567415,3218.8,3218.7,1.8958331]
[1642708848938,1.96590578,3219.0,3218.7,1.8958331]
[1642708849139,1.95567415,3218.9,3218.7,0.74972856]
[1642708849338,1.96533735,3218.9,3218.7,0.74972856]
[1642708849538,1.96476893,3218.8,3218.7,0.00122856]
[1642708849737,1.96476893,3218.8,3218.7,0.00122854]
[1642708850338,3.41683352,3218.8,3218.7,0.00122854]
[1642708850536,1.96476893,3218.8,3218.7,0.00122854]
[1642708851383,1.96476893,3218.8,3218.7,0.00672725]
[1642708851984,2.26046932,3218.8,3218.7,0.00672725]
[1642708852383,1.96046932,3218.8,3218.7,0.00672725]
[1642708852783,0.00909478,3218.8,3218.7,0.00672725]
[1642708854826,0.00909478,3218.8,3218.7,2.60672725]
[1642708855235,0.00909478,3218.8,3218.7,0.30672725]
[1642708855632,0.00909478,3218.8,3218.7,0.00672725]
[1642708856433,0.00909478,3218.8,3218.7,0.00724425]
[1642708856833,1.9705719,3218.8,3218.7,0.00724425]
[1642708857633,0.00909478,3218.8,3218.7,0.00724425]
[1642708858884,0.00909478,3218.8,3218.7,4.78144425]
[1642708859085,0.00909478,3218.8,3218.7,3.26708865]
[1642708860783,0.00909478,3218.8,3218.7,0.00724425]
[1642708860987,0.00909478,3218.8,3218.7,0.0072442]
[1642708862131,0.00909478,3218.8,3218.1,0.87106763]
[1642708862430,0.00852635,3218.7,3218.1,0.00174548]
[1642708862829,0.00795793,3218.6,3218.1,0.00174548]
[1642708863236,0.00738951,3218.5,3218.1,0.00174548]
[1642708863635,0.00682108,3218.4,3218.1,0.00174548]
[1642708863840,0.00682108,3218.4,3218.3,0.99041859]
[1642708864037,1.26058526,3219.0,3218.3,0.99216407]
[1642708864337,0.0096632,3218.9,3218.3,0.99216407]
[1642708864735,0.00909478,3218.8,3218.3,0.99216407]
[1642708865035,1.26058526,3219.0,3218.3,0.99216407]
[1642708865036,0.16370635,3218.7,3218.3,0.99216407]
[1642708865236,0.13272635,3218.7,3218.3,0.99216407]
[1642708865436,0.00795793,3218.6,3218.3,0.99216407]
[1642708865893,0.1242,3219.3,3218.3,0.99216407]
[1642708865894,0.00738951,3218.5,3218.3,0.99216407]
[1642708866084,0.00738951,3218.5,3218.4,4.4242]
[1642708866283,3.9065,3219.4,3218.4,4.72594546]
[1642708866589,0.0119369,3219.3,3218.4,5.72594546]
[1642708866784,0.0119369,3219.3,3219.0,1.05792276]
[1642708866986,5.45318042,3219.4,3219.0,1.05792276]
[1642708866987,0.01136847,3219.2,3219.0,1.05792276]
[1642708867387,1.84668042,3219.4,3218.9,0.00174544]
[1642708867388,0.01080005,3219.1,3218.9,0.00174544]
[1642708867791,0.01023163,3219.0,3218.9,0.00174544]
[1642708871037,0.01023163,3219.0,3218.9,1.01883094]
[1642708872441,0.01023163,3219.0,3218.9,0.00174544]
[1642708873483,0.01023163,3219.0,3218.9,1.15997412]
[1642708873683,0.01023163,3219.0,3218.6,0.1242]
[1642708873884,0.01023163,3219.0,3218.4,0.1242]
[1642708874084,0.0096632,3218.9,3218.1,0.1242]
[1642708874486,0.00909478,3218.8,3218.1,0.1242]
[1642708874884,0.4242,3219.1,3218.1,0.1242]
[1642708874885,1.48715714,3218.4,3218.3,0.94695319]
[1642708875285,0.00682108,3218.4,3218.3,0.94695319]
[1642708875683,0.00682108,3218.4,3218.3,4.14695319]
[1642708876586,0.00682108,3218.4,3218.3,4.57115319]
[1642708876785,0.00682108,3218.4,3218.3,5.15565915]
[1642708877033,0.00682108,3218.4,3218.3,4.57115319]
[1642708877835,0.00682108,3218.4,3218.3,0.1242]
[1642708879038,0.00682108,3218.4,3218.2,1.12484636]
[1642708879436,0.00625266,3218.3,3218.2,1.12484636]
[1642708880783,0.00625266,3218.3,3218.2,1.42484636]
[1642708880984,0.00625266,3218.3,3218.2,1.99808477]
[1642708881387,0.00625266,3218.3,3218.2,2.99808477]
[1642708881583,0.00625266,3218.3,3218.2,5.39808477]
[1642708882082,0.00625266,3218.3,3218.2,1.69808477]
[1642708882289,0.00625266,3218.3,3218.0,1.01296823]
[1642708882688,0.00568424,3218.2,3218.0,0.87734395]
[1642708882889,0.00568424,3218.2,3218.1,0.4461729]
[1642708883188,4.06926044,3218.9,3218.0,0.87734395]
[1642708883390,2.421305,3218.8,3218.1,1.05450796]
[1642708883590,2.121305,3218.7,3218.1,1.05450796]
[1642708883789,2.121305,3218.7,3218.1,1.35450796]
[1642708883989,0.00795793,3218.6,3218.1,1.35450796]
[1642708884189,2.121305,3218.5,3218.1,1.35450796]
[1642708884444,2.12869451,3218.5,3218.1,1.35450796]
[1642708884632,2.12812608,3218.4,3218.1,1.35450796]
[1642708884836,0.00682108,3218.4,3218.1,1.35450796]
[1642708885033,0.00625266,3218.3,3218.2,0.48547202]
[1642708886139,0.00625266,3218.3,3218.0,0.87734395]
[1642708886140,2.09340752,3218.3,3218.0,0.87734395]
[1642708886339,2.08715486,3218.2,3218.0,0.87734395]
[1642708886540,0.1242,3218.1,3217.6,0.37236998]
[1642708886743,2.08715486,3218.0,3217.6,0.37236998]
[1642708886940,2.53870225,3218.0,3217.6,0.37236998]
[1642708887139,2.09113383,3217.9,3217.6,0.37236998]
[1642708887342,1.3077416,3217.8,3217.6,0.37236998]
[1642708887541,2.08715486,3217.7,3217.6,0.37236998]
[1642708887740,2.08999698,3217.7,3217.6,0.37236998]
[1642708888386,2.38999698,3217.7,3217.6,0.37236998]
[1642708889388,3.38999698,3217.7,3217.6,0.37236998]
[1642708889589,2.38999698,3217.7,3217.6,0.37236998]
[1642708891191,6.07335244,3217.7,3217.6,0.37236998]
[1642708891510,5.73999698,3217.7,3217.6,0.37236998]
[1642708891944,4.54560271,3217.7,3217.6,0.37236998]
[1642708892136,2.51419698,3217.7,3217.6,0.37236998]
[1642708892639,3.51419698,3217.7,3217.6,0.37236998]
[1642708893241,2.51419698,3217.7,3217.6,0.37236998]
[1642708894240,2.38999698,3217.7,3217.6,0.37236998]
[1642708894840,2.38999698,3217.7,3217.6,0.32185084]
[1642708898788,2.38999698,3217.7,3217.6,0.31964423]
[1642708901537,0.30284212,3217.7,3217.6,0.31964423]
[1642708901936,2.46658379,3217.7,3217.6,0.31964423]
[1642708902538,2.4662076,3217.7,3217.6,0.31964423]
[1642708902943,0.00284212,3217.7,3217.6,0.31964423]
[1642708904185,0.00284212,3217.7,3217.6,0.44384423]
[1642708905685,0.00284212,3217.7,3217.6,0.74384423]
[1642708908137,0.00284212,3217.7,3217.6,0.44384423]
[1642708908336,0.00284212,3217.7,3217.6,0.74384423]
[1642708912184,0.00284212,3217.7,3217.6,0.48401995]
[1642708912386,0.00194797,3217.7,3217.6,0.48401995]
[1642708914287,0.00194797,3217.7,3217.6,0.34839567]
[1642708914735,0.00194797,3217.7,3217.6,0.04839567]
[1642708914938,0.00194797,3217.7,3217.6,1.04389934]
[1642708915136,0.00194797,3217.7,3217.6,7.77465266]
[1642708915337,0.1242,3218.4,3217.7,6.2]
[1642708915539,2.24155749,3218.3,3217.8,3.19691419]
[1642708915839,4.9243,3218.7,3217.8,3.62111419]
[1642708915840,0.00113685,3217.9,3217.8,3.62111419]
[1642708916035,0.00113685,3217.9,3217.8,3.95052591]
[1642708916235,2.24790314,3218.6,3217.8,6.85052591]
[1642708916436,3.46838285,3218.5,3217.9,0.32941172]
[1642708916640,2.24278733,3218.4,3217.8,3.49691419]
[1642708916838,2.24676629,3218.4,3217.9,0.32954895]
[1642708917036,0.00341054,3218.3,3217.9,0.4242]
[1642708917435,2.24278733,3218.4,3217.9,0.4242]
[1642708917436,0.00284212,3218.2,3217.9,0.1242]
[1642708917835,0.00227369,3218.1,3217.9,0.1242]
[1642708918283,2.24278733,3218.3,3217.9,0.1242]
[1642708918284,0.00170527,3218.0,3217.9,0.25982428]
[1642708918487,0.00170527,3218.0,3217.9,0.26203087]
[1642708918685,0.00284212,3218.0,3217.9,0.26203087]
[1642708919483,0.00284212,3218.0,3217.9,0.39986174]
[1642708919683,0.00284212,3218.0,3217.9,0.27566174]
[1642708920486,0.00284212,3218.0,3217.9,0.32405741]
[1642708920686,0.00284212,3218.0,3217.9,0.326264]
[1642708921091,0.00284212,3218.0,3217.9,0.37678313]
[1642708921586,0.00284212,3218.0,3217.9,1.05722854]
[1642708921788,0.00284212,3218.0,3217.9,1.18142854]
[1642708922031,0.00284212,3218.0,3217.9,1.18141175]
[1642708922232,0.00284212,3218.0,3217.9,4.129401]
[1642708922435,0.00284212,3218.0,3217.9,1.23193088]
[1642708922631,0.00284212,3218.0,3217.9,4.19114972]
[1642708922830,0.00284212,3218.0,3217.9,1.36976175]
[1642708923233,0.00284212,3218.0,3217.9,1.42028088]
[1642708923637,0.00284212,3218.0,3217.9,1.46867655]
[1642708923834,0.00284212,3218.0,3217.9,1.47088314]
[1642708924334,0.00284212,3218.0,3217.9,1.52140227]
[1642708924536,0.00284212,3218.0,3217.9,1.65702655]
[1642708924735,0.00284212,3218.0,3217.9,1.65923314]
[1642708925133,0.00284212,3218.0,3217.9,1.65702655]
[1642708925333,0.00284212,3218.0,3217.9,1.70754568]
[1642708925686,0.00284212,3218.0,3217.9,1.84316996]
[1642708926290,0.00284212,3218.0,3217.9,1.89368909]
[1642708926686,0.00284212,3218.0,3217.9,1.94208476]
[1642708926888,0.00284212,3218.0,3217.9,1.6122584]
[1642708927088,0.00284212,3218.0,3217.9,4.72438709]
[1642708927290,0.00284212,3218.0,3217.9,2.00109144]
[1642708927491,0.00284212,3218.0,3217.9,1.70109144]
[1642708927692,0.00284212,3218.0,3217.9,1.49840181]
[1642708928293,0.00284212,3218.0,3217.9,1.54892094]
[1642708928495,0.00284212,3218.0,3217.9,1.42472094]
[1642708928697,4.99554016,3218.0,3217.9,1.47311661]
[1642708928898,2.24278001,3218.0,3217.9,1.47311661]
[1642708929294,2.24278001,3218.0,3217.9,1.52363574]
[1642708929735,2.24278001,3218.0,3217.9,1.57203141]
[1642708930138,2.24278001,3218.0,3217.9,1.574238]
[1642708930335,2.24278001,3218.0,3217.9,1.62475713]
[1642708930736,6.21750123,3218.0,3217.9,1.6731528]
[1642708930937,2.7,3217.9,3217.8,0.05060226]
[1642708931137,6.06413789,3217.9,3217.8,0.05060226]
[1642708931335,3.66413789,3217.9,3217.8,0.05060226]
[1642708931933,3.66413789,3217.9,3217.8,0.18622654]
[1642708932735,2.66413789,3217.9,3217.8,0.18622654]
[1642708934392,2.53993789,3217.9,3217.8,0.18622654]
[1642708941788,0.3,3217.9,3217.8,0.18622654]
[1642708941993,2.58403412,3217.9,3217.8,0.18622654]
[1642708943189,2.58403412,3217.9,3217.8,0.18401995]
[1642708945837,2.58403412,3217.9,3217.8,0.13562428]
[1642708952239,2.58403412,3217.9,3217.8,0.04839567]
[1642708953242,2.58403412,3217.9,3217.8,0.18401995]
[1642708953243,2.28403412,3217.9,3217.8,0.18401995]
[1642708953641,2.28403412,3217.9,3217.8,0.49867274]
[1642708953842,2.28403412,3217.9,3217.8,0.18401995]
[1642708954242,2.28403412,3217.9,3217.8,0.31964423]
[1642708954641,2.58403412,3217.9,3217.8,0.31964423]
[1642708955340,2.58403412,3217.9,3217.8,0.3680399]
[1642708956385,2.58403412,3217.9,3217.8,0.41643557]
[1642708957386,2.58403412,3217.9,3217.8,0.55205985]
[1642708958493,2.58403412,3217.9,3217.8,0.68768413]
[1642708959190,2.58403412,3217.9,3217.8,1.0012545]
[1642708959439,2.58403412,3217.9,3217.8,0.68768413]
[1642708960434,2.58403412,3217.9,3217.8,1.00130493]
[1642708961935,2.58403412,3217.9,3217.8,2.15730493]
[1642708961936,2.28403412,3217.9,3217.8,2.15730493]
[1642708962137,2.27279255,3217.9,3217.8,2.15730493]
[1642708962337,2.27373286,3218.3,3217.8,2.15730493]
[1642708962537,2.27373286,3218.3,3217.9,0.3136208]
[1642708962538,2.27288908,3218.3,3217.9,0.3136208]
[1642708962739,2.27629962,3218.3,3218.0,0.1242]
[1642708963188,2.27629962,3218.3,3218.0,0.4242]
[1642708963189,0.00341054,3218.3,3218.0,0.4242]
[1642708964099,0.00341054,3218.3,3218.0,0.46086816]
[1642708964297,0.00341054,3218.3,3218.0,1.71066816]
[1642708964701,0.00341054,3218.3,3218.0,1.674]
[1642708965896,0.00341054,3218.3,3218.2,0.97580609]
[1642708966297,0.00341054,3218.3,3218.2,1.27580609]
[1642708971415,0.00341054,3218.3,3218.0,1.374]
[1642708971416,0.00341054,3218.3,3218.0,1.674]
[1642708971788,0.00284212,3218.2,3218.0,1.674]
[1642708972189,0.00227369,3218.1,3218.0,2.674]
[1642708972389,4.9225,3219.4,3218.1,6.2]
[1642708972390,1.61909655,3219.3,3218.1,6.2]
[1642708972589,4.9225,3219.4,3218.2,4.10777275]
[1642708972590,6.41739655,3219.4,3218.2,4.10777275]
[1642708972790,0.00454739,3218.9,3218.2,4.10777275]
[1642708972991,0.00454739,3218.9,3218.2,1.4242]
[1642708973187,1.7577608,3219.2,3218.2,1.4242]
[1642708973188,0.00397897,3218.8,3218.2,2.2009]
[1642708973390,1.7577608,3219.2,3218.4,5.9]
[1642708973391,1.7133441,3219.2,3218.4,5.9]
[1642708973593,0.7133441,3219.2,3219.0,0.93968454]
[1642708973793,0.00170527,3219.1,3219.0,0.93968454]
[1642708974849,0.00170527,3219.1,3219.0,1.23968454]
[1642708978709,0.00170527,3219.1,3218.8,0.4242]
[1642708979106,1.2948889,3219.6,3218.8,0.4242]
[1642708979107,0.00113685,3219.0,3218.8,0.4242]
[1642708979507,0.1242,3219.7,3218.8,1.2008323]
[1642708979508,0.00397896,3219.5,3218.8,1.2008323]
[1642708979811,0.00341054,3219.4,3218.8,2.2754323]
[1642708980009,0.00341054,3219.4,3218.8,3.2754323]
[1642708980207,0.00284212,3219.3,3218.8,3.2754323]
[1642708980408,0.00284212,3219.3,3219.1,0.9618803]
[1642708980608,0.00227369,3219.2,3219.1,1.2618803]
[1642708981510,0.00227369,3219.2,3219.1,0.3]
[1642708981950,0.00227369,3219.2,3218.8,0.4242]
[1642708982539,0.00227369,3219.2,3218.6,1.13840659]
[1642708982540,0.00227369,3219.2,3218.6,0.1242]
[1642708982741,0.00227369,3219.2,3218.5,1.1266]
[1642708982742,2.922766,3219.2,3218.5,1.1266]
[1642708982942,2.26046898,3219.1,3218.5,1.1266]
[1642708983140,2.26046898,3219.1,3218.6,0.00113685]
[1642708983347,0.00113685,3219.0,3218.6,0.00113685]
[1642708983544,2.26160583,3219.0,3218.6,0.98290716]
[1642708983745,2.26046898,3218.9,3218.6,0.98290716]
[1642708983946,0.3,3218.8,3218.6,0.98290716]
[1642708984147,2.26046898,3218.7,3218.6,0.98290716]
[1642708984946,2.26046898,3218.7,3218.6,1.28290716]
[1642708985545,0.00113685,3219.0,3218.6,1.40710716]
[1642708985791,0.00113685,3219.0,3218.6,1.28290716]
[1642708985993,1.91909655,3219.5,3218.6,1.28290716]
[1642708986190,1.91909655,3219.5,3218.7,0.00170528]
[1642708986191,0.1242,3219.4,3218.7,0.00170528]
[1642708986390,1.79489655,3219.5,3218.7,0.00170528]
[1642708986391,0.00113684,3219.2,3218.7,0.00170528]
[1642708986792,0.00227369,3219.4,3219.1,0.98795789]
[1642708987193,0.00170527,3219.3,3219.1,0.98795789]
[1642708987593,0.00227369,3219.4,3219.1,0.98795789]
[1642708987995,0.00170527,3219.3,3219.1,1.28795789]
[1642708988194,0.00170527,3219.3,3219.1,0.98795789]
[1642708988398,0.00227369,3219.4,3219.1,0.98795789]
[1642708988604,0.00227369,3219.4,3219.1,1.28795789]
[1642708988799,0.00170527,3219.3,3219.1,1.28795789]
[1642708989198,0.3,3219.5,3219.1,1.28795789]
[1642708989199,0.00227369,3219.4,3219.1,1.28795789]
[1642708989449,0.00227369,3219.4,3219.1,2.78795789]
[1642708989643,0.00170527,3219.3,3219.1,2.78795789]
[1642708990044,0.00227369,3219.4,3219.1,2.78795789]
[1642708990446,0.00170527,3219.3,3219.1,2.78795789]
[1642708990847,0.00227369,3219.4,3219.1,2.48795789]
[1642708991047,0.00227369,3219.4,3219.1,0.98795789]
[1642708991254,0.00170527,3219.3,3219.1,0.98795789]
[1642708991648,0.00227369,3219.4,3219.1,0.98795789]
[1642708992151,0.3,3219.5,3219.1,0.98795789]
[1642708992152,0.00170527,3219.3,3219.1,0.98795789]
[1642708992551,0.3,3219.5,3219.1,1.28795789]
[1642708992552,0.00227369,3219.4,3219.1,1.28795789]
[1642708992951,0.00170527,3219.3,3219.1,1.28795789]
[1642708993392,0.00227369,3219.4,3219.1,1.28795789]
[1642708993692,0.00170527,3219.3,3219.1,0.98795789]
[1642708994092,0.3,3219.5,3219.1,0.98795789]
[1642708994093,0.00227369,3219.4,3219.1,0.98795789]
[1642708994492,0.16608099,3219.5,3219.1,0.98795789]
[1642708996094,1.49489655,3219.8,3219.1,0.98795789]
[1642708996095,1.61909655,3219.8,3219.1,0.98795789]
[1642708996295,0.3,3219.7,3219.1,0.98795789]